fUSD/lending_fUSD_20250120
["ID","MTS","AMOUNT","RATE_DAILY","PERIOD"]
[349677518,1737370240241,-909.79,0.00020854,2]
[349677519,1737370240251,-500.0,0.00020854,2]
[349677520,1737370240261,-500.0,0.00020854,2]
[349677521,1737370240272,-500.0,0.00020854,2]
[349677522,1737370240282,-500.0,0.00020854,2]
[349677523,1737370240291,-500.0,0.00020854,2]
[349677524,1737370240300,-500.0,0.00020854,2]
[349677525,1737370240310,-826.97,0.00020854,2]
[349677526,1737370240319,-721.98,0.00020854,2]
[349677527,1737370240329,-1308.23,0.00020854,2]
[349677528,1737370240339,-1474.22,0.00020854,2]
[349677529,1737370240348,-500.0,0.00020854,2]
[349677530,1737370240358,-685.67,0.00020854,2]
[349677531,1737370240368,-500.0,0.00020854,2]
[349677532,1737370240378,-500.0,0.00020854,2]
[349677533,1737370240388,-515.89,0.00020854,2]
[349677534,1737370240401,-1020.02,0.00020854,2]
[349677535,1737370240410,-550.96,0.00020854,2]
[349677536,1737370240420,-500.0,0.00020854,2]
[349677537,1737370240430,-525.48,0.00020854,2]
[349677538,1737370240440,-500.0,0.00020854,2]
[349677539,1737370240450,-692.05,0.00020854,2]
[349677540,1737370240460,-500.0,0.00020854,2]
[349677541,1737370240470,-2494.6,0.00020854,2]
[349677542,1737370240479,-472.01,0.00020854,2]
[349677543,1737370240488,-500.0,0.00020854,2]
[349677544,1737370240498,-500.0,0.00020854,2]
[349677545,1737370240508,-500.0,0.00020854,2]
[349677546,1737370240518,-537.44,0.00020854,2]
[349677547,1737370240528,-969.82,0.00020854,2]
[349677548,1737370240537,-741.22,0.00020854,2]
[349677549,1737370240547,-500.0,0.00020854,2]
[349677550,1737370240556,-731.01,0.00020854,2]
[349677551,1737370240566,-1082.63,0.00020854,2]
[349677552,1737370240576,-1535.05,0.00020854,2]
[349677553,1737370240586,-1649.29,0.00020854,2]
[349677554,1737370240597,-3469.0,0.00020854,2]
[349677555,1737370240606,-731.58,0.00020854,2]
[349677556,1737370240616,-500.0,0.00020854,2]
[349677557,1737370240625,-500.0,0.00020854,2]
[349677558,1737370240635,-1916.14,0.00020854,2]
[349677559,1737370240646,-2999.29,0.00020854,2]
[349677560,1737370240656,-500.0,0.00020854,2]
[349677561,1737370240665,-500.0,0.00020854,2]
[349677562,1737370240675,-222.61285179,0.00020854,2]
[349677563,1737370240688,-422.43714821,0.00020854,2]
[349677564,1737370240698,-92.61352779,0.00020854,2]
[349677565,1737370240709,-407.38647221,0.00020854,2]
[349677566,1737370240718,-251.09196138,0.00020854,2]
[349677567,1737370240733,-1499.25803862,0.00020854,2]
[349677568,1737370240742,-500.0,0.00020854,2]
[349677569,1737370240752,-2522.64,0.00020854,2]
[349677570,1737370240762,-500.0,0.00020854,2]
[349677571,1737370240771,-500.0,0.00020854,2]
[349677572,1737370240781,-793.04,0.00020854,2]
[349677573,1737370240790,-936.08,0.00020854,2]
[349677574,1737370240801,-500.0,0.00020854,2]
[349677575,1737370240812,-500.0,0.00020854,2]
[349677576,1737370240821,-956.03,0.00020854,2]
[349677577,1737370240830,-941.23,0.00020854,2]
[349677578,1737370240839,-135.8339614,0.00020854,2]
[349677579,1737370241105,-554.938993,0.00020478,2]
[349677580,1737370241115,-364.1660386,0.00020854,2]
[349677581,1737370241125,-94.0549684,0.00020854,2]
[349677582,1737370241137,-405.9450316,0.00020854,2]
[349677583,1737370241149,-438.31496843,0.00020855,2]
[349677584,1737370241160,-61.68503157,0.00020855,2]
[349677585,1737370241170,-361.75046844,0.00020855,2]
[349677586,1737370241182,-138.24953156,0.00020855,2]
[349677587,1737370241192,-500.0,0.00020855,2]
[349677588,1737370241201,-500.0,0.00020855,2]
[349677589,1737370241210,-500.0,0.00020855,2]
[349677590,1737370241219,-523.73,0.00020855,2]
[349677591,1737370241229,-500.0,0.00020855,2]
[349677592,1737370241238,-500.0,0.00020855,2]
[349677593,1737370241247,-500.0,0.00020855,2]
[349677594,1737370241257,-500.0,0.00020855,2]
[349677595,1737370241266,-500.0,0.00020855,2]
[349677596,1737370241275,-500.0,0.00020855,2]
[349677597,1737370241284,-500.0,0.00020855,2]
[349677598,1737370241294,-500.0,0.00020855,2]
[349677599,1737370241303,-500.0,0.00020855,2]
[349677600,1737370241312,-518.69,0.00020855,2]
[349677601,1737370241322,-401.64870226,0.00020855,2]
[349677602,1737370241331,-500.0,0.00020855,2]
[349677603,1737370241341,-500.0,0.00020855,2]
[349677604,1737370241351,-500.0,0.00020855,2]
[349677605,1737370241360,-500.0,0.00020855,2]
[349677606,1737370241369,-500.0,0.00020855,2]
[349677607,1737370241379,-607.7,0.00020855,2]
[349677608,1737370241389,-161.99948018,0.00020855,2]
[349677609,1737370241400,-500.0,0.00020855,2]
[349677610,1737370241409,-500.0,0.00020855,2]
[349677611,1737370241419,-500.0,0.00020855,2]
[349677612,1737370241428,-500.0,0.00020855,2]
[349677613,1737370241437,-500.0,0.00020855,2]
[349677614,1737370241447,-500.0,0.00020855,2]
[349677615,1737370241456,-1000.0,0.00020855,2]
[349677616,1737370241465,-500.0,0.00020855,2]
[349677617,1737370241475,-500.0,0.00020855,2]
[349677618,1737370241484,-1036.72516607,0.00020855,2]
[349677619,1737370241634,-580.50483393,0.00020855,2]
[349677620,1737370241645,-841.59,0.00020855,2]
[349677621,1737370241655,-542.59358089,0.0002088,2]
[349677622,1737370241665,-160.464,0.000209,2]
[349677623,1737370241674,-542.59358089,0.00021008,2]
[349677624,1737370241683,-1841.16843971,0.00021027,2]
[349677625,1737370241693,-310.45502609,0.00021029,2]
[349677626,1737370241702,-29865.26034016,0.0002103,2]
[349677627,1737370241714,-3512.24745984,0.0002103,2]
[349677628,1737370241723,-1841.16843964,0.00021124,2]
[349677629,1737370241732,-500.0,0.00021127,2]
[349677630,1737370241743,-500.0,0.00021127,2]
[349677631,1737370241752,-500.0,0.00021127,2]
[349677632,1737370241761,-500.0,0.00021127,2]
[349677633,1737370241770,-500.0,0.00021127,2]
[349677634,1737370241779,-500.0,0.00021127,2]
[349677635,1737370241788,-500.0,0.00021127,2]
[349677636,1737370241797,-500.0,0.00021127,2]
[349677637,1737370241809,-276.13169424,0.00021127,2]
[349677638,1737370241821,-223.86830576,0.00021127,2]
[349677639,1737370241830,-452.41599278,0.00021127,2]
[349677640,1737370241841,-47.58400722,0.00021127,2]
[349677641,1737370241853,-493.61111654,0.00021127,2]
[349677642,1737370241862,-552.52,0.00021127,2]
[349677643,1737370241871,-500.0,0.00021127,2]
[349677644,1737370241882,-500.0,0.00021127,2]
[349677645,1737370241892,-500.0,0.00021127,2]
[349677646,1737370241903,-349.88487624,0.00021127,2]
[349677652,1737370242932,-500.0,0.00020854,2]
[349677653,1737370242941,-150.11512376,0.00021127,2]
[349677654,1737370242950,-500.0,0.00021127,2]
[349677655,1737370242959,-536.68,0.00021127,2]
[349677656,1737370242969,-500.0,0.00021127,2]
[349677657,1737370242978,-500.0,0.00021127,2]
[349677658,1737370242987,-623.61,0.00021127,2]
[349677659,1737370242996,-500.0,0.00021127,2]
[349677660,1737370243005,-500.0,0.00021127,2]
[349677661,1737370243015,-577.89,0.00021127,2]
[349677662,1737370243024,-512.73,0.00021127,2]
[349677663,1737370243033,-500.0,0.00021127,2]
[349677664,1737370243042,-518.12,0.00021127,2]
[349677665,1737370243051,-500.0,0.00021127,2]
[349677666,1737370243060,-500.0,0.00021127,2]
[349677667,1737370243069,-500.0,0.00021127,2]
[349677668,1737370243078,-529.05,0.00021127,2]
[349677669,1737370243087,-500.0,0.00021127,2]
[349677670,1737370243096,-500.0,0.00021127,2]
[349677671,1737370243105,-500.0,0.00021127,2]
[349677672,1737370243114,-500.0,0.00021127,2]
[349677673,1737370243123,-605.34,0.00021127,2]
[349677674,1737370243132,-500.0,0.00021127,2]
[349677675,1737370243141,-339.09,0.00021127,2]
[349677676,1737370243153,-500.0,0.00021127,2]
[349677677,1737370243162,-500.0,0.00021127,2]
[349677678,1737370243171,-500.0,0.00021127,2]
[349677679,1737370243180,-500.0,0.00021127,2]
[349677680,1737370243189,-500.0,0.00021127,2]
[349677681,1737370243198,-500.0,0.00021127,2]
[349677682,1737370243207,-500.0,0.00021127,2]
[349677683,1737370243216,-500.0,0.00021127,2]
[349677684,1737370243225,-500.0,0.00021127,2]
[349677685,1737370243234,-500.0,0.00021127,2]
[349677686,1737370243242,-946.26,0.00021127,2]
[349677687,1737370243251,-592.95,0.00021127,2]
[349677689,1737370243260,-500.0,0.00021127,2]
[349677691,1737370243269,-500.0,0.00021127,2]
[349677692,1737370243279,-501.01,0.00021127,2]
[349677693,1737370243287,-500.0,0.00021127,2]
[349677694,1737370243296,-810.91,0.00021127,2]
[349677695,1737370243306,-500.0,0.00021127,2]
[349677696,1737370243315,-883.93,0.00021127,2]
[349677697,1737370243324,-664.62,0.00021127,2]
[349677698,1737370243333,-500.0,0.00021127,2]
[349677699,1737370243343,-778.15,0.00021127,2]
[349677700,1737370243352,-500.0,0.00021127,2]
[349677701,1737370243360,-379.92919624,0.00021127,2]
[349677702,1737370243372,-976.14080376,0.00021127,2]
[349677703,1737370243381,-500.0,0.00021127,2]
[349677704,1737370243391,-508.05,0.00021127,2]
[349677705,1737370243401,-1077.98,0.00021127,2]
[349677706,1737370243410,-500.0,0.00021127,2]
[349677707,1737370243420,-664.06,0.00021127,2]
[349677708,1737370243429,-592.54,0.00021127,2]
[349677709,1737370243439,-626.3,0.00021127,2]
[349677710,1737370243449,-735.44,0.00021127,2]
[349677711,1737370243458,-500.0,0.00021127,2]
[349677712,1737370243468,-500.0,0.00021127,2]
[349677713,1737370243478,-815.54,0.00021127,2]
[349677714,1737370243487,-871.67,0.00021127,2]
[349677715,1737370243496,-500.0,0.00021127,2]
[349677716,1737370243506,-500.0,0.00021127,2]
[349677717,1737370243515,-500.0,0.00021127,2]
[349677718,1737370243524,-500.0,0.00021127,2]
[349677719,1737370243533,-500.0,0.00021127,2]
[349677720,1737370243543,-500.0,0.00021127,2]
[349677721,1737370243552,-1004.47,0.00021127,2]
[349677722,1737370243561,-1734.77,0.00021127,2]
[349677723,1737370243571,-500.0,0.00021127,2]
[349677724,1737370243580,-708.0,0.00021127,2]
[349677725,1737370243589,-500.0,0.00021127,2]
[349677726,1737370243599,-500.0,0.00021127,2]
[349677727,1737370243608,-508.35,0.00021127,2]
[349677728,1737370243617,-1103.82,0.00021127,2]
[349677729,1737370243627,-279.17059535,0.00021127,2]
[349677730,1737370243635,-500.0,0.00021127,2]
[349677731,1737370243646,-189.83069088,0.00021128,2]
[349677732,1737370243657,-310.16930912,0.00021128,2]
[349677733,1737370243666,-500.0,0.00021128,2]
[349677734,1737370243675,-568.869644,0.00021128,2]
[349677735,1737370243684,-500.0,0.00021128,2]
[349677736,1737370243694,-500.0,0.00021128,2]
[349677737,1737370243703,-500.0,0.00021128,2]
[349677738,1737370243712,-500.0,0.00021128,2]
[349677739,1737370243721,-500.0,0.00021128,2]
[349677740,1737370243730,-500.0,0.00021128,2]
[349677741,1737370243739,-425.59190028,0.00021128,2]
[349677742,1737370243751,-74.40809972,0.00021128,2]
[349677743,1737370243760,-608.33,0.00021128,2]
[349677744,1737370243769,-817.45,0.00021128,2]
[349677745,1737370243779,-500.0,0.00021128,2]
[349677746,1737370243787,-289.3317127,0.00021128,2]
[349677747,1737370243797,-578.18416514,0.00021128,2]
[349677748,1737370243809,-452.49603244,0.00021128,2]
[349677749,1737370243823,-47.50396756,0.00021128,2]
[349677750,1737370243831,-909.79,0.00021128,2]
[349677751,1737370243841,-500.0,0.00021128,2]
[349677752,1737370243851,-459.67947766,0.00021128,2]
[349677753,1737370243862,-40.32052234,0.00021128,2]
[349677754,1737370243871,-252.7994855,0.00021128,2]
[349677755,1737370243882,-247.2005145,0.00021128,2]
[349677756,1737370243892,-500.0,0.00021128,2]
[349677757,1737370243904,-826.97,0.00021128,2]
[349677758,1737370243913,-718.51081013,0.00021128,2]
[349677759,1737370243924,-3.46918987,0.00021128,2]
[349677760,1737370243933,-1308.23,0.00021128,2]
[349677761,1737370243942,-1474.22,0.00021128,2]
[349677762,1737370243951,-500.0,0.00021128,2]
[349677763,1737370243961,-685.67,0.00021128,2]
[349677764,1737370243970,-500.0,0.00021128,2]
[349677765,1737370243980,-515.89,0.00021128,2]
[349677766,1737370243989,-1020.02,0.00021128,2]
[349677767,1737370243999,-550.96,0.00021128,2]
[349677768,1737370244008,-525.48,0.00021128,2]
[349677769,1737370244017,-500.0,0.00021128,2]
[349677770,1737370244026,-692.05,0.00021128,2]
[349677771,1737370244036,-500.0,0.00021128,2]
[349677772,1737370244045,-2494.6,0.00021128,2]
[349677773,1737370244054,-500.0,0.00021128,2]
[349677774,1737370244063,-500.0,0.00021128,2]
[349677775,1737370244073,-537.44,0.00021128,2]
[349677776,1737370244082,-291.97081013,0.00021128,2]
[349677779,1737370245881,-342.863561,0.00020853,2]
[349677780,1737370245892,-317.64420295,0.00020853,2]
[349677781,1737370245904,-500.0,0.00020854,2]
[349677782,1737370245913,-677.84918987,0.00021128,2]
[349677783,1737370245923,-741.22,0.00021128,2]
[349677784,1737370245932,-453.21490933,0.00021128,2]
[349677785,1737370245942,-731.01,0.00021128,2]
[349677786,1737370245952,-1082.63,0.00021128,2]
[349677787,1737370245961,-1535.05,0.00021128,2]
[349677788,1737370245970,-1649.29,0.00021128,2]
[349677789,1737370245981,-3469.0,0.00021128,2]
[349677790,1737370245990,-731.58,0.00021128,2]
[349677791,1737370245999,-249.75981188,0.00021128,2]
[349677792,1737370246011,-279.31523437,0.00021128,2]
[349677793,1737370246022,-1916.14,0.00021128,2]
[349677794,1737370246033,-2999.29,0.00021128,2]
[349677795,1737370246043,-500.0,0.00021128,2]
[349677796,1737370246054,-500.0,0.00021128,2]
[349677797,1737370246063,-645.05,0.00021128,2]
[349677798,1737370246072,-500.0,0.00021128,2]
[349677799,1737370246081,-454.25033907,0.00021128,2]
[349677800,1737370246097,-1296.09966093,0.00021128,2]
[349677801,1737370246106,-500.0,0.00021128,2]
[349677802,1737370246116,-2522.64,0.00021128,2]
[349677803,1737370246125,-500.0,0.00021128,2]
[349677804,1737370246135,-793.04,0.00021128,2]
[349677805,1737370246144,-936.08,0.00021128,2]
[349677806,1737370246153,-500.0,0.00021128,2]
[349677807,1737370246163,-500.0,0.00021128,2]
[349677808,1737370246172,-956.03,0.00021128,2]
[349677809,1737370246181,-941.23,0.00021128,2]
[349677810,1737370246190,-500.0,0.00021128,2]
[349677811,1737370246199,-500.0,0.00021128,2]
[349677812,1737370246209,-152.26,0.00021128,2]
[349677813,1737370246218,-251.09268828,0.00021129,2]
[349677836,1737371069081,228.4,0.00010137,2]
[349677838,1737371253516,828.7989894,0.00023233,120]
[349677844,1737371432011,-167.83,0.00015848,2]
[349677845,1737371432021,-228.4,0.00016813,2]
[349677846,1737371432031,-866.39,0.00017574,2]
[349677847,1737371432040,-500.0,0.00018,2]
[349677848,1737371432049,-6.53535487,0.00018164,2]
[349677849,1737371432065,-493.46464513,0.00018164,2]
[349677850,1737371432074,-249.93499634,0.00018164,2]
[349677851,1737371432083,-250.0,0.00019356,2]
[349677852,1737371432092,-686.40035852,0.0001963,2]
[349677853,1737371432103,-113.92964148,0.0001963,2]
[349677854,1737371432112,-511.18,0.00019694,30]
[349677855,1737371432121,-1000.0,0.00019726,14]
[349677856,1737371432131,-9025.01372713,0.00019734,2]
[349677857,1737371432150,-5602.58627287,0.00019734,2]
[349677858,1737371432159,-1000.0,0.00019761,2]
[349677859,1737371432168,-250.0,0.00019764,2]
[349677860,1737371432177,-866.39,0.00019838,2]
[349677861,1737371432195,-588.9,0.0001993,2]
[349677862,1737371432204,-380.71,0.00019992,2]
[349677863,1737371432214,-173.17,0.00019995,2]
[349677864,1737371432223,-32.78130921,0.0002,14]
[349677865,1737371432234,-548.51347149,0.0002,14]
[349677866,1737371432242,-250.0,0.00020009,2]
[349677867,1737371432250,-173.99,0.00020115,2]
[349677868,1737371432259,-500.0,0.00020356,2]
[349677869,1737371432268,-150.0,0.00020356,2]
[349677870,1737371432278,-150.0,0.00020356,2]
[349677871,1737371432287,-150.0,0.00020356,2]
[349677872,1737371432297,-150.0,0.00020356,2]
[349677873,1737371432307,-1648.3095,0.00020754,2]
[349677874,1737371432316,-617.67,0.00020754,2]
[349677875,1737371432325,-500.0,0.00020853,2]
[349677876,1737371432335,-500.0,0.00020853,2]
[349677877,1737371432344,-504.21,0.00020853,2]
[349677878,1737371432353,-536.96,0.00020853,2]
[349677879,1737371432362,-99.34702849,0.00020853,2]
[349677880,1737371432377,-400.65297151,0.00020853,2]
[349677881,1737371432387,-500.0,0.00020853,2]
[349677882,1737371432396,-355.95522938,0.00020853,2]
[349677883,1737371432412,-144.04477062,0.00020853,2]
[349677884,1737371432422,-153.41696828,0.00020853,2]
[349677885,1737371432435,-346.58303172,0.00020853,2]
[349677886,1737371432446,-500.0,0.00020853,2]
[349677887,1737371432455,-500.0,0.00020853,2]
[349677888,1737371432466,-500.0,0.00020853,2]
[349677889,1737371432475,-500.0,0.00020853,2]
[349677890,1737371432485,-500.0,0.00020853,2]
[349677891,1737371432494,-500.0,0.00020853,2]
[349677892,1737371432504,-500.0,0.00020853,2]
[349677893,1737371432513,-500.0,0.00020853,2]
[349677894,1737371432523,-500.0,0.00020853,2]
[349677895,1737371432533,-500.0,0.00020853,2]
[349677896,1737371432543,-500.0,0.00020853,2]
[349677897,1737371432552,-500.0,0.00020853,2]
[349677898,1737371432561,-500.0,0.00020853,2]
[349677899,1737371432571,-532.56,0.00020853,2]
[349677900,1737371432581,-500.0,0.00020853,2]
[349677901,1737371432591,-500.0,0.00020853,2]
[349677902,1737371432600,-500.0,0.00020853,2]
[349677903,1737371432610,-500.0,0.00020853,2]
[349677904,1737371432621,-500.0,0.00020853,2]
[349677905,1737371432630,-500.0,0.00020853,2]
[349677906,1737371432640,-500.0,0.00020853,2]
[349677907,1737371432649,-631.2,0.00020853,2]
[349677908,1737371432658,-500.0,0.00020853,2]
[349677909,1737371432667,-500.0,0.00020853,2]
[349677910,1737371432677,-500.0,0.00020853,2]
[349677911,1737371432689,-500.0,0.00020853,2]
[349677912,1737371432697,-500.0,0.00020853,2]
[349677913,1737371432707,-500.0,0.00020853,2]
[349677914,1737371432717,-200.0,0.00020854,2]
[349677915,1737371432889,-500.0,0.00020854,2]
[349677916,1737371432899,-247.11957653,0.00020854,2]
[349677917,1737371432908,-500.0,0.00020854,2]
[349677918,1737371432918,-500.0,0.00020854,2]
[349677919,1737371432927,-500.0,0.00020854,2]
[349677920,1737371432939,-500.0,0.00020854,2]
[349677921,1737371432949,-500.0,0.00020854,2]
[349677922,1737371432959,-500.0,0.00020854,2]
[349677923,1737371432968,-598.56896618,0.00020854,2]
[349677924,1737371432978,-500.0,0.00020854,2]
[349677925,1737371432987,-500.0,0.00020854,2]
[349677926,1737371432997,-500.0,0.00020854,2]
[349677927,1737371433006,-248.81624937,0.00020854,2]
[349677928,1737371433113,-251.18375063,0.00020854,2]
[349677929,1737371433123,-500.0,0.00020854,2]
[349677930,1737371433133,-500.0,0.00020854,2]
[349677931,1737371433142,-500.0,0.00020854,2]
[349677932,1737371433152,-500.0,0.00020854,2]
[349677933,1737371433162,-500.0,0.00020854,2]
[349677934,1737371433171,-1562.81624937,0.00020899,2]
[349677935,1737371433186,-336.96258,0.00020899,2]
[349677936,1737371433200,-3353.7,0.00020899,2]
[349677937,1737371433212,-559.92964875,0.00020899,2]
[349677938,1737371433236,-13206.36866383,0.00020899,2]
[349677939,1737371433247,-25802.30995805,0.00020899,2]
[349677940,1737371433257,-1823.33668515,0.00020899,2]
[349677941,1737371433266,-150.87349606,0.00020899,2]
[349677942,1737371433276,-160.37,0.000209,2]
[349677943,1737371433286,-200.0,0.000209,7]
[349677944,1737371433295,-310.45502609,0.000209,2]
[349677945,1737371433305,-1500.48775858,0.000209,2]
[349677946,1737371433314,-2500.0,0.000209,2]
[349677947,1737371433323,-205.64069293,0.000209,2]
[349677948,1737371433332,-1238.19368,0.0002092,2]
[349677949,1737371433342,-200.0,0.00020942,2]
[349677950,1737371433352,-173.17,0.00020995,2]
[349677951,1737371433362,-500.0,0.00020999,2]
[349677952,1737371433371,-500.0,0.00020999,2]
[349677953,1737371433381,-500.0,0.00020999,2]
[349677954,1737371433391,-500.0,0.00020999,2]
[349677955,1737371433402,-500.0,0.00020999,2]
[349677956,1737371433413,-500.0,0.00020999,2]
[349677957,1737371433423,-500.0,0.00020999,2]
[349677958,1737371433435,-500.0,0.00020999,2]
[349677959,1737371433445,-500.0,0.00020999,2]
[349677960,1737371433454,-500.0,0.00020999,2]
[349677961,1737371433464,-500.0,0.00020999,2]
[349677962,1737371433474,-500.0,0.00020999,2]
[349677963,1737371433484,-500.0,0.00020999,2]
[349677964,1737371433493,-500.0,0.00020999,2]
[349677965,1737371433503,-500.0,0.00020999,2]
[349677966,1737371433512,-275.05686908,0.00020999,2]
[349677967,1737371433522,-271.74689622,0.00020999,2]
[349677968,1737371433532,-500.0,0.00020999,2]
[349677969,1737371433543,-500.0,0.00020999,2]
[349677970,1737371433553,-500.0,0.00020999,2]
[349677971,1737371433563,-500.0,0.00020999,2]
[349677972,1737371433573,-554.28,0.00020999,2]
[349677973,1737371433583,-500.0,0.00020999,2]
[349677974,1737371433592,-500.0,0.00020999,2]
[349677975,1737371433602,-346.181468,0.00020999,2]
[349677976,1737371433612,-500.0,0.00020999,2]
[349677977,1737371433622,-500.0,0.00020999,2]
[349677978,1737371433631,-507.23,0.00020999,2]
[349677979,1737371433641,-500.0,0.00020999,2]
[349677980,1737371433650,-500.0,0.00020999,2]
[349677981,1737371433660,-341.41975541,0.00020999,2]
[349677982,1737371433669,-555.37962,0.00020999,2]
[349677983,1737371433678,-500.0,0.00020999,2]
[349677984,1737371433689,-521.77,0.00020999,2]
[349677985,1737371433699,-500.0,0.00020999,2]
[349677986,1737371433708,-500.0,0.00020999,2]
[349677987,1737371433718,-500.0,0.00020999,2]
[349677988,1737371433727,-500.0,0.00020999,2]
[349677989,1737371433736,-500.0,0.00020999,2]
[349677990,1737371433745,-500.0,0.00020999,2]
[349677991,1737371433754,-606.28,0.00020999,2]
[349677992,1737371433763,-500.0,0.00020999,2]
[349677993,1737371433772,-500.0,0.00020999,2]
[349677994,1737371433781,-500.0,0.00020999,2]
[349677995,1737371433790,-500.0,0.00020999,2]
[349677996,1737371433799,-500.0,0.00020999,2]
[349677997,1737371433809,-500.0,0.00020999,2]
[349677998,1737371433818,-500.0,0.00020999,2]
[349677999,1737371433827,-500.0,0.00020999,2]
[349678000,1737371433836,-500.0,0.00020999,2]
[349678001,1737371433845,-500.0,0.00020999,2]
[349678002,1737371433855,-561.83,0.00020999,2]
[349678003,1737371433864,-309.54453658,0.00020999,2]
[349678004,1737371437971,-1892.93818691,0.00016713,2]
[349678005,1737371437981,-1892.93818689,0.00017094,2]
[349678006,1737371437991,-190.45546342,0.00020999,2]
[349678007,1737371438001,-500.0,0.00020999,2]
[349678008,1737371438011,-500.0,0.00020999,2]
[349678009,1737371438020,-503.73,0.00020999,2]
[349678010,1737371438031,-280.6825834,0.00020999,2]
[349678011,1737371438040,-500.0,0.00020999,2]
[349678012,1737371438051,-503.66455936,0.00020999,2]
[349678013,1737371438061,-511.31,0.00020999,2]
[349678014,1737371438070,-500.0,0.00020999,2]
[349678015,1737371438079,-500.0,0.00020999,2]
[349678016,1737371438089,-500.0,0.00020999,2]
[349678017,1737371438099,-500.0,0.00020999,2]
[349678018,1737371438109,-471.69034001,0.00020999,2]
[349678019,1737371438119,-500.0,0.00020999,2]
[349678020,1737371438128,-500.0,0.00020999,2]
[349678021,1737371438138,-500.0,0.00020999,2]
[349678022,1737371438148,-500.0,0.00020999,2]
[349678023,1737371438158,-500.0,0.00020999,2]
[349678024,1737371438167,-500.0,0.00020999,2]
[349678025,1737371438177,-500.0,0.00020999,2]
[349678026,1737371438188,-500.0,0.00020999,2]
[349678027,1737371438202,-753.89,0.00020999,2]
[349678028,1737371438212,-500.0,0.00020999,2]
[349678029,1737371438222,-500.0,0.00020999,2]
[349678030,1737371438232,-500.0,0.00020999,2]
[349678031,1737371438241,-500.0,0.00020999,2]
[349678032,1737371438252,-914.52,0.00020999,2]
[349678033,1737371438262,-500.0,0.00020999,2]
[349678034,1737371438271,-500.0,0.00020999,2]
[349678035,1737371438281,-500.0,0.00020999,2]
[349678036,1737371438291,-500.0,0.00020999,2]
[349678037,1737371438301,-500.0,0.00020999,2]
[349678038,1737371438313,-539.57,0.00020999,2]
[349678039,1737371438322,-528.24,0.00020999,2]
[349678040,1737371438332,-500.0,0.00020999,2]
[349678041,1737371438342,-513.29,0.00020999,2]
[349678042,1737371438353,-500.0,0.00020999,2]
[349678043,1737371438362,-500.0,0.00020999,2]
[349678044,1737371438372,-500.0,0.00020999,2]
[349678045,1737371438381,-500.0,0.00020999,2]
[349678046,1737371438391,-500.0,0.00020999,2]
[349678047,1737371438400,-946.01,0.00020999,2]
[349678048,1737371438410,-788.86,0.00020999,2]
[349678049,1737371438419,-613.22,0.00020999,2]
[349678050,1737371438430,-500.0,0.00020999,2]
[349678051,1737371438441,-500.0,0.00020999,2]
[349678052,1737371438451,-500.0,0.00020999,2]
[349678053,1737371438461,-589.73,0.00020999,2]
[349678054,1737371438470,-500.0,0.00020999,2]